fUSD/lending_fUSD_20240426
["ID","MTS","AMOUNT","RATE_DAILY","PERIOD"]
[323589571,1714099849813,-500.0,0.00011232,2]
[323589573,1714099849822,-500.0,0.00011232,2]
[323589575,1714099849831,-500.0,0.00011232,2]
[323589577,1714099849840,-500.0,0.00011232,2]
[323589579,1714099849849,-704.32,0.00011232,2]
[323589581,1714099849859,-500.0,0.00011232,2]
[323589583,1714099849868,-13782.64,0.00011232,2]
[323589585,1714099849877,-500.0,0.00011232,2]
[323589588,1714099849887,-500.0,0.00011232,2]
[323589589,1714099849896,-570.59,0.00011232,2]
[323589591,1714099849905,-500.0,0.00011232,2]
[323589593,1714099849915,-155.66873257,0.00011232,2]
[323589595,1714099849924,-500.0,0.00011232,2]
[323589597,1714099849933,-500.0,0.00011232,2]
[323589600,1714099849943,-500.0,0.00011232,2]
[323589601,1714099849952,-500.0,0.00011232,2]
[323589604,1714099849962,-500.0,0.00011232,2]
[323589605,1714099849971,-500.0,0.00011232,2]
[323589607,1714099849979,-990.34,0.00011232,2]
[323589609,1714099849989,-500.0,0.00011232,2]
[323589612,1714099849998,-500.0,0.00011232,2]
[323589613,1714099850007,-500.0,0.00011232,2]
[323589616,1714099850017,-500.0,0.00011232,2]
[323589617,1714099850026,-531.62,0.00011232,2]
[323589619,1714099850035,-797.89,0.00011232,2]
[323589622,1714099850045,-500.0,0.00011232,2]
[323589623,1714099850054,-500.0,0.00011232,2]
[323589625,1714099850065,-500.0,0.00011232,2]
[323589628,1714099850074,-500.0,0.00011232,2]
[323589630,1714099850083,-500.0,0.00011232,2]
[323589631,1714099850092,-792.52,0.00011232,2]
[323589633,1714099850101,-500.0,0.00011232,2]
[323589635,1714099850110,-500.0,0.00011232,2]
[323589637,1714099850119,-500.0,0.00011232,2]
[323589639,1714099850128,-500.0,0.00011232,2]
[323589641,1714099850137,-500.0,0.00011232,2]
[323589643,1714099850147,-500.0,0.00011232,2]
[323589645,1714099850156,-500.0,0.00011232,2]
[323589647,1714099850166,-713.68,0.00011232,2]
[323589650,1714099850175,-500.0,0.00011232,2]
[323589651,1714099850184,-500.0,0.00011232,2]
[323589654,1714099850194,-190.99985466,0.00011232,2]
[323589656,1714099850203,-500.0,0.00011232,2]
[323589657,1714099850212,-500.0,0.00011232,2]
[323589659,1714099850221,-504.80503511,0.00011232,2]
[323589661,1714099850230,-395.7997452,0.00011232,2]
[323589664,1714099850239,-4326.92,0.00011232,2]
[323589665,1714099850249,-521.79041082,0.00011232,2]
[323589667,1714099850258,-500.0,0.00011232,2]
[323589669,1714099850267,-500.0,0.00011232,2]
[323589671,1714099850276,-500.0,0.00011232,2]
[323589673,1714099850286,-500.0,0.00011232,2]
[323589675,1714099850295,-500.0,0.00011232,2]
[323589677,1714099850304,-819.73,0.00011232,2]
[323589679,1714099850314,-500.0,0.00011232,2]
[323589681,1714099850323,-500.0,0.00011232,2]
[323589684,1714099850333,-500.0,0.00011232,2]
[323589685,1714099850343,-500.0,0.00011232,2]
[323589688,1714099850352,-1184.97,0.00011232,2]
[323589690,1714099850361,-500.0,0.00011232,2]
[323589691,1714099850370,-500.0,0.00011232,2]
[323589694,1714099850379,-498.67526562,0.00011232,2]
[323589696,1714099850389,-500.0,0.00011232,2]
[323589697,1714099850398,-500.0,0.00011232,2]
[323589699,1714099850409,-1008.35,0.00011232,2]
[323589701,1714099850420,-670.47,0.00011232,2]
[323589703,1714099850430,-500.0,0.00011232,2]
[323589705,1714099850439,-500.0,0.00011232,2]
[323589707,1714099850448,-590.31,0.00011232,2]
[323589709,1714099850458,-500.0,0.00011232,2]
[323589711,1714099850468,-152.060117,0.00011232,2]
[323589713,1714099850478,-1493.54,0.00011232,2]
[323589715,1714099850487,-500.0,0.00011232,2]
[323589717,1714099850497,-500.0,0.00011232,2]
[323589719,1714099850506,-500.0,0.00011232,2]
[323589722,1714099850515,-500.0,0.00011232,2]
[323589723,1714099850525,-1078.64,0.00011232,2]
[323589726,1714099850534,-910.8,0.00011232,2]
[323589728,1714099850543,-500.0,0.00011232,2]
[323589729,1714099850554,-500.0,0.00011232,2]
[323589732,1714099850563,-500.0,0.00011232,2]
[323589734,1714099850573,-840.23,0.00011232,2]
[323589736,1714099850582,-500.0,0.00011232,2]
[323589738,1714099850591,-500.0,0.00011232,2]
[323589740,1714099850600,-500.0,0.00011232,2]
[323589742,1714099850609,-500.0,0.00011232,2]
[323589744,1714099850618,-500.0,0.00011232,2]
[323589746,1714099850628,-500.0,0.00011232,2]
[323589748,1714099850638,-530.08661872,0.00011232,2]
[323589750,1714099850648,-1154.79,0.00011232,2]
[323589752,1714099850657,-740.7,0.00011232,2]
[323589754,1714099850667,-500.0,0.00011232,2]
[323589756,1714099850676,-500.0,0.00011232,2]
[323589758,1714099850686,-500.0,0.00011232,2]
[323589760,1714099850696,-1489.27,0.00011232,2]
[323589762,1714099850705,-500.0,0.00011232,2]
[323589764,1714099850714,-500.0,0.00011232,2]
[323589766,1714099850724,-500.0,0.00011232,2]
[323589768,1714099850734,-729.03,0.00011232,2]
[323589770,1714099850743,-500.0,0.00011232,2]
[323589772,1714099850752,-1253.42,0.00011232,2]
[323589774,1714099850762,-500.0,0.00011232,2]
[323589776,1714099850772,-500.0,0.00011232,2]
[323589778,1714099850781,-510.86,0.00011232,2]
[323589780,1714099850791,-457.53079605,0.00011232,2]
[323589782,1714099850800,-500.0,0.00011232,2]
[323589784,1714099850810,-500.0,0.00011232,2]
[323589786,1714099850820,-500.0,0.00011232,2]
[323589788,1714099850830,-1027.35,0.00011232,2]
[323589789,1714099850839,-2782.5,0.00011232,2]
[323589790,1714099850848,-500.0,0.00011232,2]
[323589791,1714099850857,-500.0,0.00011232,2]
[323589792,1714099850866,-500.0,0.00011232,2]
[323589794,1714099850875,-10479.31,0.00011232,2]
[323589796,1714099850884,-1955.94,0.00011232,2]
[323589798,1714099850892,-1119.24,0.00011232,2]
[323589800,1714099850902,-500.0,0.00011232,2]
[323589803,1714099850911,-500.0,0.00011232,2]
[323589805,1714099850921,-515.66225271,0.00011232,2]
[323589807,1714099850930,-598.89,0.00011232,2]
[323589809,1714099850939,-500.0,0.00011232,2]
[323589811,1714099850949,-767.18,0.00011232,2]
[323589813,1714099850958,-971.45,0.00011232,2]
[323589815,1714099850967,-500.0,0.00011232,2]
[323589817,1714099850976,-500.0,0.00011232,2]
[323589819,1714099850986,-500.0,0.00011232,2]
[323589821,1714099850995,-619.3,0.00011232,2]
[323589823,1714099851005,-710.38,0.00011232,2]
[323589825,1714099851015,-500.0,0.00011232,2]
[323589827,1714099851024,-500.0,0.00011232,2]
[323589829,1714099851034,-500.0,0.00011232,2]
[323589831,1714099851043,-500.0,0.00011232,2]
[323589833,1714099851053,-500.0,0.00011232,2]
[323589835,1714099851062,-500.0,0.00011232,2]
[323589838,1714099851074,-500.0,0.00011232,2]
[323589840,1714099851085,-500.0,0.00011232,2]
[323589842,1714099851095,-539.49,0.00011232,2]
[323589844,1714099851104,-500.0,0.00011232,2]
[323589846,1714099851113,-506.7427608,0.00011232,2]
[323589848,1714099851122,-500.0,0.00011232,2]
[323589850,1714099851131,-500.0,0.00011232,2]
[323589852,1714099851140,-500.0,0.00011232,2]
[323589854,1714099851149,-495.0,0.00011232,2]
[323589856,1714099851158,-426.28257298,0.00011232,2]
[323589858,1714099851168,-500.0,0.00011232,2]
[323589860,1714099851177,-500.0,0.00011232,2]
[323589862,1714099851186,-500.0,0.00011232,2]
[323589864,1714099851195,-500.0,0.00011232,2]
[323589866,1714099851205,-1031.65,0.00011232,2]
[323589868,1714099851214,-500.0,0.00011232,2]
[323589870,1714099851224,-3775.7,0.00011232,2]
[323589872,1714099851233,-500.0,0.00011232,2]
[323589874,1714099851243,-500.0,0.00011232,2]
[323589876,1714099851252,-500.0,0.00011232,2]
[323589878,1714099851262,-500.0,0.00011232,2]
[323589880,1714099851271,-500.0,0.00011232,2]
[323589882,1714099851281,-702.49,0.00011232,2]
[323589884,1714099851290,-500.0,0.00011232,2]
[323589886,1714099851300,-500.0,0.00011232,2]
[323589888,1714099851309,-500.0,0.00011232,2]
[323589890,1714099851320,-510.14902847,0.00011232,2]
[323589892,1714099851329,-500.0,0.00011232,2]
[323589894,1714099851339,-500.0,0.00011232,2]
[323589897,1714099851349,-500.0,0.00011232,2]
[323589899,1714099851358,-500.0,0.00011232,2]
[323589901,1714099851367,-533.97,0.00011232,2]
[323589903,1714099851377,-500.0,0.00011232,2]
[323589905,1714099851387,-150.0,0.00011232,2]
[323589907,1714099851397,-500.0,0.00011232,2]
[323589909,1714099851408,-500.0,0.00011232,2]
[323589911,1714099851419,-556.24,0.00011232,2]
[323589913,1714099851429,-1391.33,0.00011232,2]
[323589915,1714099851439,-871.6,0.00011232,2]
[323589917,1714099851448,-245.37059869,0.00011232,2]
[323589919,1714099851458,-627.06,0.00011232,2]
[323589921,1714099851468,-1354.26,0.00011232,2]
[323589923,1714099851479,-500.0,0.00011232,2]
[323589925,1714099851491,-500.0,0.00011232,2]
[323589927,1714099851502,-500.0,0.00011232,2]
[323589929,1714099851511,-500.0,0.00011232,2]
[323589932,1714099851524,-500.0,0.00011232,2]
[323589934,1714099851534,-607.48,0.00011232,2]
[323589936,1714099851544,-500.0,0.00011232,2]
[323589938,1714099851554,-500.0,0.00011232,2]
[323589940,1714099851564,-500.0,0.00011232,2]
[323589942,1714099851575,-500.0,0.00011232,2]
[323589944,1714099851587,-546.67,0.00011232,2]
[323589946,1714099851598,-500.0,0.00011232,2]
[323589948,1714099851608,-500.0,0.00011232,2]
[323589950,1714099851618,-1291.15,0.00011232,2]
[323589952,1714099851627,-225.0263864,0.00011232,2]
[323589954,1714099851638,-1192.27,0.00011232,2]
[323589956,1714099851647,-500.0,0.00011232,2]
[323589958,1714099851657,-500.0,0.00011232,2]
[323589960,1714099851667,-500.0,0.00011232,2]
[323589962,1714099851677,-500.0,0.00011232,2]
[323589964,1714099851687,-500.0,0.00011232,2]
[323589967,1714099851697,-500.0,0.00011232,2]
[323589969,1714099851707,-614.36,0.00011232,2]
[323589971,1714099851717,-500.0,0.00011232,2]
[323589973,1714099851726,-500.0,0.00011232,2]
[323589975,1714099851736,-500.0,0.00011232,2]
[323589977,1714099851745,-500.0,0.00011232,2]
[323589979,1714099851755,-500.0,0.00011232,2]
[323589981,1714099851764,-851.07,0.00011232,2]
[323589983,1714099851774,-500.0,0.00011232,2]
[323589985,1714099851784,-500.0,0.00011232,2]
[323589987,1714099851793,-3689.16,0.00011232,2]
[323589989,1714099851803,-523.76,0.00011232,2]
[323589991,1714099851812,-500.0,0.00011232,2]
[323589993,1714099851824,-500.0,0.00011232,2]
[323589995,1714099851835,-496.99665983,0.00011232,2]
[323589997,1714099851845,-2886.58,0.00011232,2]
[323589999,1714099851854,-500.0,0.00011232,2]
[323590001,1714099851864,-458.91374711,0.00011232,2]
[323590003,1714099851874,-500.0,0.00011232,2]
[323590005,1714099851884,-500.0,0.00011232,2]
[323590007,1714099851894,-500.0,0.00011232,2]
[323590009,1714099851904,-500.0,0.00011232,2]
[323590011,1714099851913,-500.0,0.00011232,2]
[323590013,1714099851923,-810.66,0.00011232,2]
[323590015,1714099851933,-1427.24,0.00011232,2]
[323590017,1714099851943,-500.0,0.00011232,2]
[323590019,1714099851954,-500.0,0.00011232,2]
[323590021,1714099851965,-500.0,0.00011232,2]
[323590023,1714099851975,-500.0,0.00011232,2]
[323590025,1714099851986,-5355.8,0.00011232,2]
[323590027,1714099851996,-500.0,0.00011232,2]
[323590029,1714099852007,-500.0,0.00011232,2]
[323590031,1714099852017,-2934.42,0.00011232,2]
[323590033,1714099852027,-593.35,0.00011232,2]
[323590035,1714099852037,-500.0,0.00011232,2]
[323590037,1714099852048,-500.0,0.00011232,2]
[323590039,1714099852058,-500.0,0.00011232,2]
[323590041,1714099852068,-561.06,0.00011232,2]
[323590043,1714099852080,-500.0,0.00011232,2]
[323590045,1714099852090,-500.0,0.00011232,2]
[323590047,1714099852100,-500.0,0.00011232,2]
[323590049,1714099852111,-500.0,0.00011232,2]
[323590051,1714099852121,-3906.26,0.00011232,2]
[323590053,1714099852131,-500.0,0.00011232,2]
[323590055,1714099852142,-500.0,0.00011232,2]
[323590057,1714099852153,-942.63,0.00011232,2]
[323590059,1714099852162,-883.44,0.00011232,2]
[323590061,1714099852171,-500.0,0.00011232,2]
[323590063,1714099852181,-500.0,0.00011232,2]
[323590065,1714099852191,-500.0,0.00011232,2]
[323590067,1714099852201,-500.0,0.00011232,2]
[323590069,1714099852210,-1001.99,0.00011232,2]
[323590071,1714099852220,-500.0,0.00011232,2]
[323590073,1714099852229,-500.0,0.00011232,2]
[323590075,1714099852239,-1409.08,0.00011232,2]
[323590077,1714099852248,-500.0,0.00011232,2]
[323590079,1714099852258,-500.0,0.00011232,2]
[323590081,1714099852268,-500.0,0.00011232,2]
[323590083,1714099852277,-500.0,0.00011232,2]
[323590085,1714099852287,-1201.76,0.00011232,2]
[323590087,1714099852298,-500.0,0.00011232,2]
[323590089,1714099852308,-548.57127324,0.00011232,2]
[323590091,1714099852319,-566.12,0.00011232,2]
[323590093,1714099852330,-500.0,0.00011232,2]
[323590095,1714099852340,-500.0,0.00011232,2]
[323590097,1714099852350,-500.0,0.00011232,2]
[323590099,1714099852361,-550.32,0.00011232,2]
[323590101,1714099852372,-500.0,0.00011232,2]
[323590103,1714099852382,-500.0,0.00011232,2]
[323590105,1714099852392,-500.0,0.00011232,2]
[323590107,1714099852403,-500.0,0.00011232,2]
[323590109,1714099852417,-5397.88,0.00011232,2]
[323590111,1714099852426,-744.48,0.00011232,2]
[323590113,1714099852437,-500.0,0.00011232,2]
[323590115,1714099852447,-2362.23,0.00011232,2]
[323590117,1714099852459,-500.0,0.00011232,2]
[323590119,1714099852470,-614.68,0.00011232,2]
[323590121,1714099852479,-689.84,0.00011232,2]
[323590123,1714099852489,-500.0,0.00011232,2]
[323590125,1714099852499,-500.0,0.00011232,2]
[323590127,1714099852508,-852.38,0.00011232,2]
[323590129,1714099852518,-2544.91,0.00011232,2]
[323590131,1714099852528,-500.0,0.00011232,2]
[323590133,1714099852537,-585.64,0.00011232,2]
[323590135,1714099852547,-1558.98,0.00011232,2]
[323590137,1714099852556,-1437.91,0.00011232,2]
[323590139,1714099852566,-500.0,0.00011232,2]
[323590141,1714099852577,-509.45171185,0.00011232,2]
[323590143,1714099852587,-3502.25,0.00011232,2]
[323590145,1714099852598,-500.0,0.00011232,2]
[323590147,1714099852609,-761.7,0.00011232,2]
[323590149,1714099852618,-1067.79,0.00011232,2]
[323590151,1714099852630,-342.35075201,0.00011232,2]
[323590153,1714099852640,-500.0,0.00011232,2]
[323590155,1714099852651,-500.0,0.00011232,2]
[323590157,1714099852662,-612.84753778,0.00011232,2]
[323590230,1714099853407,-605.21246222,0.00011232,2]
[323590232,1714099853420,-519.42322028,0.00011232,2]
[323590233,1714099853430,-531.33,0.00011232,2]
[323590236,1714099853439,-7411.09,0.00011232,2]
[323590238,1714099853450,-505.99721799,0.00011232,2]
[323590240,1714099853460,-628.25,0.00011232,2]
[323590241,1714099853469,-500.0,0.00011232,2]
[323590243,1714099853479,-500.0,0.00011232,2]
[323590246,1714099853491,-749.11,0.00011232,2]
[323590247,1714099853500,-500.0,0.00011232,2]
[323590249,1714099853510,-294.1,0.0001126,2]
[323590251,1714099853519,-150.0,0.000113,2]
[323590253,1714099853528,-332.11,0.000113,2]
[323590255,1714099853537,-5986.19986248,0.00011346,2]
[323590257,1714099853546,-150.0,0.0001137,2]
[323590259,1714099853555,-150.0,0.0001137,2]
[323590261,1714099853565,-294.1,0.0001138,2]
[323590263,1714099853575,-152.39,0.000114,2]
[323590265,1714099853584,-168.97110828,0.00011406,2]
[323590267,1714099853593,-173.71415482,0.00011406,2]
[323590269,1714099853602,-5296.19938847,0.00011412,2]
[323590271,1714099853611,-12615.64617632,0.0001145,2]
[323590273,1714099853620,-766.28,0.00011499,2]
[323590275,1714099853630,-456.00966855,0.000115,2]
[323590277,1714099853639,-294.1,0.000115,2]
[323590279,1714099853649,-1849.78,0.00011503,2]
[323590281,1714099853658,-2555.28,0.00011503,2]
[323590283,1714099853667,-834.4,0.00011503,2]
[323590285,1714099853676,-500.0,0.00011504,2]
[323590287,1714099853686,-500.0,0.00011504,2]
[323590289,1714099853696,-500.0,0.00011504,2]
[323590291,1714099853706,-500.0,0.00011504,2]
[323590293,1714099853716,-500.0,0.00011504,2]
[323590295,1714099853725,-499.40638346,0.00011504,2]
[323590297,1714099853735,-626.72,0.00011504,2]
[323590299,1714099853744,-500.0,0.00011504,2]
[323590301,1714099853753,-500.0,0.00011504,2]
[323590303,1714099853763,-500.0,0.00011504,2]
[323590305,1714099853773,-500.0,0.00011504,2]
[323590306,1714099853783,-500.0,0.00011504,2]
[323590307,1714099853792,-500.0,0.00011504,2]
[323590308,1714099853802,-500.0,0.00011504,2]
[323590309,1714099853812,-500.0,0.00011504,2]
[323590310,1714099853822,-500.0,0.00011504,2]
[323590311,1714099853832,-500.0,0.00011504,2]
[323590312,1714099853841,-500.0,0.00011504,2]
[323590313,1714099853850,-500.0,0.00011504,2]
[323590314,1714099853860,-500.0,0.00011504,2]
[323590315,1714099853870,-500.0,0.00011504,2]
[323590316,1714099853879,-500.0,0.00011504,2]
[323590318,1714099853890,-500.0,0.00011504,2]
[323590320,1714099853899,-500.0,0.00011504,2]
[323590322,1714099853910,-500.0,0.00011504,2]
[323590324,1714099853919,-500.0,0.00011504,2]
[323590326,1714099853929,-500.0,0.00011504,2]
[323590328,1714099853938,-500.0,0.00011504,2]
[323590330,1714099853948,-500.0,0.00011504,2]
[323590332,1714099853958,-523.14603434,0.00011504,2]
[323590334,1714099853967,-500.0,0.00011504,2]
[323590336,1714099853977,-437.74023283,0.00011504,2]
[323590338,1714099853986,-500.0,0.00011504,2]
[323590340,1714099853996,-503.10077948,0.00011504,2]
[323590342,1714099854007,-500.0,0.00011504,2]
[323590344,1714099854016,-792.0,0.00011506,2]
[323590346,1714099854026,-500.0,0.00011506,2]
[323590348,1714099854036,-507.38930438,0.00011506,2]
[323590350,1714099854045,-804.83,0.00011506,2]
[323590352,1714099854055,-500.0,0.00011506,2]
[323590354,1714099854064,-500.0,0.00011506,2]
[323590356,1714099854075,-500.0,0.00011506,2]
[323590359,1714099854086,-500.0,0.00011506,2]
[323590361,1714099854096,-500.0,0.00011506,2]
[323590363,1714099854106,-500.0,0.00011506,2]
[323590365,1714099854116,-500.0,0.00011506,2]
[323590367,1714099854125,-500.0,0.00011506,2]
[323590369,1714099854134,-500.0,0.00011506,2]
[323590371,1714099854143,-500.0,0.00011506,2]
[323590373,1714099854152,-500.0,0.00011506,2]
[323590375,1714099854162,-500.0,0.00011506,2]
[323590377,1714099854170,-510.27,0.00011506,2]
[323590379,1714099854179,-500.0,0.00011506,2]
[323590381,1714099854188,-500.0,0.00011506,2]
[323590383,1714099854197,-620.91,0.00011506,2]
[323590385,1714099854207,-500.0,0.00011506,2]
[323590387,1714099854216,-500.0,0.00011506,2]
[323590388,1714099854225,-500.0,0.00011506,2]
[323590391,1714099854235,-790.04,0.00011506,2]
[323590393,1714099854244,-500.0,0.00011506,2]
[323590395,1714099854253,-500.0,0.00011506,2]
[323590397,1714099854262,-876.49,0.00011506,2]
[323590399,1714099854271,-500.0,0.00011506,2]
[323590401,1714099854280,-881.46,0.00011506,2]
[323590403,1714099854289,-500.0,0.00011506,2]
[323590404,1714099854298,-1093.86,0.00011506,2]
[323590406,1714099854308,-607.43,0.00011506,2]
[323590408,1714099854316,-270.78318925,0.00011506,2]
[323590410,1714099854326,-500.0,0.00011506,2]
[323590413,1714099854335,-500.0,0.00011506,2]
[323590415,1714099854345,-500.0,0.00011506,2]
[323590417,1714099854354,-459.50149669,0.00011506,2]
[323590419,1714099854364,-500.0,0.00011506,2]
[323590421,1714099854373,-500.0,0.00011506,2]
[323590423,1714099854382,-845.83,0.00011506,2]
[323590425,1714099854390,-555.49034131,0.00011506,2]
[323590427,1714099854400,-500.0,0.00011506,2]
[323590428,1714099854410,-500.0,0.00011506,2]
[323590431,1714099854420,-500.0,0.00011506,2]
[323590433,1714099854430,-500.0,0.00011506,2]
[323590435,1714099854439,-737.82,0.00011506,2]
[323590437,1714099854447,-360.17,0.00011506,2]
[323590439,1714099854458,-500.0,0.00011506,2]
[323590441,1714099854467,-378.44571671,0.00011506,2]
[323590443,1714099854476,-500.0,0.00011506,2]
[323590445,1714099854485,-604.4,0.00011506,2]
[323590447,1714099854495,-500.0,0.00011506,2]
[323590449,1714099854504,-835.54,0.00011506,2]
[323590451,1714099854513,-500.0,0.00011506,2]
[323590453,1714099854523,-500.0,0.00011506,2]
[323590455,1714099854532,-500.0,0.00011506,2]
[323590457,1714099854541,-500.0,0.00011506,2]
[323590459,1714099854550,-500.0,0.00011506,2]
[323590461,1714099854559,-500.0,0.00011506,2]
[323590463,1714099854568,-500.0,0.00011506,2]
[323590465,1714099854578,-500.0,0.00011506,2]
[323590467,1714099854588,-802.45,0.00011506,2]
[323590468,1714099854597,-500.0,0.00011506,2]
[323590470,1714099854606,-500.0,0.00011506,2]
[323590472,1714099854616,-500.0,0.00011506,2]
[323590475,1714099854626,-500.0,0.00011506,2]
[323590476,1714099854635,-500.0,0.00011506,2]
[323590479,1714099854645,-509.90211407,0.00011506,2]
[323590480,1714099854654,-500.0,0.00011506,2]
[323590483,1714099854664,-506.05778344,0.00011506,2]
[323590485,1714099854673,-500.0,0.00011506,2]
[323590486,1714099854683,-508.94383027,0.00011506,2]
[323590488,1714099854692,-500.0,0.00011506,2]
[323590491,1714099854701,-500.0,0.00011506,2]
[323590493,1714099854711,-515.79,0.00011506,2]
[323590495,1714099854720,-500.0,0.00011506,2]
[323590497,1714099854730,-500.0,0.00011506,2]
[323590498,1714099854739,-500.0,0.00011506,2]
[323590501,1714099854749,-500.0,0.00011506,2]
[323590503,1714099854758,-500.0,0.00011506,2]
[323590505,1714099854767,-500.0,0.00011506,2]
[323590506,1714099854776,-617.91,0.00011506,2]
[323590509,1714099854786,-753.79,0.00011506,2]
[323590510,1714099854795,-500.0,0.00011506,2]
[323590513,1714099854805,-500.0,0.00011506,2]
[323590514,1714099854816,-965.82,0.00011506,2]
[323590516,1714099854826,-500.0,0.00011506,2]
[323590519,1714099854835,-500.0,0.00011506,2]
[323590521,1714099854844,-500.0,0.00011506,2]
[323590523,1714099854855,-560.71,0.00011506,2]
[323590525,1714099854864,-500.0,0.00011506,2]
[323590526,1714099854874,-500.0,0.00011506,2]
[323590528,1714099854882,-500.0,0.00011506,2]
[323590530,1714099854891,-500.0,0.00011506,2]
[323590533,1714099854902,-500.0,0.00011506,2]
[323590535,1714099854911,-500.0,0.00011506,2]
[323590537,1714099854921,-500.0,0.00011506,2]
[323590539,1714099854930,-500.0,0.00011506,2]
[323590541,1714099854940,-500.0,0.00011506,2]
[323590543,1714099854948,-500.0,0.00011506,2]
[323590545,1714099854957,-500.0,0.00011506,2]
[323590547,1714099854967,-500.0,0.00011506,2]
[323590549,1714099854977,-759.84,0.00011506,2]
[323590551,1714099854986,-500.0,0.00011506,2]
[323590553,1714099854995,-500.0,0.00011506,2]
[323590555,1714099855004,-500.0,0.00011506,2]
[323590557,1714099855014,-500.0,0.00011506,2]
[323590559,1714099855023,-500.0,0.00011506,2]
[323590561,1714099855032,-500.0,0.00011506,2]
[323590562,1714099855041,-500.0,0.00011506,2]
[323590564,1714099855050,-500.0,0.00011506,2]
[323590567,1714099855059,-500.0,0.00011506,2]
[323590569,1714099855069,-500.0,0.00011506,2]
[323590570,1714099855079,-500.0,0.00011506,2]
[323590572,1714099855088,-500.0,0.00011506,2]
[323590574,1714099855097,-575.38,0.00011506,2]
[323590576,1714099855106,-500.0,0.00011506,2]
[323590578,1714099855115,-500.0,0.00011506,2]
[323590581,1714099855126,-629.25,0.00011506,2]
[323590583,1714099855135,-527.63,0.00011506,2]
[323590585,1714099855144,-500.0,0.00011506,2]
[323590587,1714099855155,-500.0,0.00011506,2]
[323590589,1714099855167,-500.0,0.00011506,2]
[323590591,1714099855179,-500.0,0.00011506,2]
[323590594,1714099855192,-500.0,0.00011506,2]
[323590596,1714099855203,-709.23,0.00011506,2]
[323590598,1714099855214,-500.0,0.00011506,2]
[323590601,1714099855226,-500.0,0.00011506,2]
[323590603,1714099855238,-500.0,0.00011506,2]
[323590605,1714099855249,-500.0,0.00011506,2]
[323590607,1714099855261,-500.0,0.00011506,2]
[323590610,1714099855274,-500.0,0.00011506,2]
[323590612,1714099855286,-500.0,0.00011506,2]
[323590614,1714099855297,-500.0,0.00011506,2]
[323590617,1714099855309,-500.0,0.00011506,2]
[323590619,1714099855320,-500.0,0.00011506,2]
[323590621,1714099855332,-500.0,0.00011506,2]
[323590623,1714099855343,-500.0,0.00011506,2]
[323590626,1714099855355,-500.0,0.00011506,2]
[323590628,1714099855366,-500.0,0.00011506,2]
[323590630,1714099855377,-595.25,0.00011506,2]
[323590633,1714099855389,-500.0,0.00011506,2]
[323590635,1714099855401,-500.0,0.00011506,2]
[323590637,1714099855415,-500.0,0.00011506,2]